fUST/lending_fUST_20250530
["ID","MTS","AMOUNT","RATE_DAILY","PERIOD"]
[363148673,1748599845167,-6162.88,0.00019452,2]
[363148675,1748599845177,-430.0,0.00019452,2]
[363148677,1748599845192,-430.0,0.00019452,2]
[363148679,1748599845201,-430.0,0.00019452,2]
[363148681,1748599845211,-430.0,0.00019452,2]
[363148683,1748599845220,-625.42,0.00019452,2]
[363148685,1748599845230,-430.0,0.00019452,2]
[363148687,1748599845239,-430.0,0.00019452,2]
[363148689,1748599845249,-430.0,0.00019452,2]
[363148691,1748599845259,-430.0,0.00019452,2]
[363148693,1748599845270,-2321.09,0.00019452,2]
[363148695,1748599845279,-430.0,0.00019452,2]
[363148697,1748599845288,-430.0,0.00019452,2]
[363148699,1748599845298,-653.47,0.00019452,2]
[363148701,1748599845307,-422.49300686,0.00019452,2]
[363148703,1748599845316,-646.21,0.00019452,2]
[363148705,1748599845327,-430.0,0.00019452,2]
[363148707,1748599845336,-1153.29,0.00019452,2]
[363148709,1748599845346,-430.0,0.00019452,2]
[363148711,1748599845356,-230.87740925,0.00019452,2]
[363148713,1748599845365,-430.0,0.00019452,2]
[363148715,1748599845374,-430.0,0.00019452,2]
[363148717,1748599845383,-443.07315985,0.00019452,2]
[363148719,1748599845394,-887.53,0.00019452,2]
[363148720,1748599845404,-5995.57,0.00019452,2]
[363148722,1748599845413,-1053.86,0.00019452,2]
[363148724,1748599845423,-430.0,0.00019452,2]
[363148726,1748599845432,-430.0,0.00019452,2]
[363148728,1748599845442,-430.0,0.00019452,2]
[363148730,1748599845451,-430.0,0.00019452,2]
[363148732,1748599845460,-430.0,0.00019452,2]
[363148734,1748599845470,-430.0,0.00019452,2]
[363148737,1748599845479,-430.0,0.00019452,2]
[363148739,1748599845488,-197.76268248,0.00019452,2]
[363148741,1748599845497,-430.0,0.00019452,2]
[363148743,1748599845507,-430.0,0.00019452,2]
[363148745,1748599845517,-814.95,0.00019452,2]
[363148747,1748599845526,-172.01487287,0.00019626,2]
[363148749,1748599845536,-150.0,0.00019656,2]
[363148751,1748599845546,-150.0,0.00019656,2]
[363148752,1748599845556,-2228.0,0.00019656,2]
[363148754,1748599845566,-708.0,0.00019656,2]
[363148756,1748599845576,-430.0,0.00019726,2]
[363148758,1748599845587,-430.0,0.00019726,2]
[363148760,1748599845598,-625.44,0.00019726,2]
[363148762,1748599845609,-430.0,0.00019726,2]
[363148764,1748599845622,-439.0,0.00019726,2]
[363148767,1748599845636,-430.0,0.00019726,2]
[363148768,1748599845647,-507.86800106,0.00019726,2]
[363148771,1748599845657,-545.31535562,0.00019726,2]
[363148773,1748599845666,-430.0,0.00019726,2]
[363148775,1748599845676,-494.84643993,0.00019726,2]
[363148779,1748599845685,-430.0,0.00019726,2]
[363148782,1748599845696,-430.0,0.00019726,2]
[363148785,1748599845705,-396.46,0.00019726,2]
[363148788,1748599845715,-430.0,0.00019726,2]
[363148791,1748599845724,-430.0,0.00019726,2]
[363148793,1748599845734,-430.0,0.00019726,2]
[363148795,1748599845744,-430.0,0.00019726,2]
[363148797,1748599845754,-1350.74,0.00019726,2]
[363148799,1748599845764,-430.0,0.00019726,2]
[363148801,1748599845773,-430.0,0.00019726,2]
[363148803,1748599845783,-430.0,0.00019726,2]
[363148805,1748599845792,-430.0,0.00019726,2]
[363148807,1748599845802,-430.0,0.00019726,2]
[363148809,1748599845812,-430.0,0.00019726,2]
[363148811,1748599845821,-430.0,0.00019726,2]
[363148813,1748599845831,-554.05298708,0.00019726,2]
[363148815,1748599845840,-1255.09,0.00019726,2]
[363148817,1748599845850,-1398.56,0.00019726,2]
[363148819,1748599845859,-430.0,0.00019726,2]
[363148821,1748599845868,-210.43016891,0.00019726,2]
[363148823,1748599845878,-430.0,0.00019726,2]
[363148825,1748599845887,-489.25383404,0.00019726,2]
[363148827,1748599845896,-430.0,0.00019726,2]
[363148829,1748599845906,-442.67,0.00019726,2]
[363148831,1748599845915,-430.0,0.00019726,2]
[363148833,1748599845924,-430.0,0.00019726,2]
[363148835,1748599845933,-430.0,0.00019726,2]
[363148837,1748599845944,-238.53519198,0.00019726,2]
[363148839,1748599845953,-430.0,0.00019726,2]
[363148841,1748599845963,-453.44,0.00019726,2]
[363148843,1748599845973,-4983.7,0.00019726,2]
[363148845,1748599845982,-907.89,0.00019726,2]
[363148847,1748599845991,-430.0,0.00019726,2]
[363148849,1748599846000,-430.0,0.00019726,2]
[363148851,1748599846010,-430.0,0.00019726,2]
[363148853,1748599846019,-6118.79,0.00019726,2]
[363148854,1748599846028,-430.0,0.00019726,2]
[363148856,1748599846038,-2375.79,0.00019726,2]
[363148858,1748599846047,-430.0,0.00019726,2]
[363148860,1748599846056,-1557.44,0.00019726,2]
[363148862,1748599846066,-1846.32,0.00019726,2]
[363148864,1748599846075,-430.0,0.00019726,2]
[363148866,1748599846085,-1005.88,0.00019726,2]
[363148868,1748599846094,-781.05,0.00019726,2]
[363148870,1748599846103,-430.0,0.00019726,2]
[363148872,1748599846114,-7162.95,0.00019726,2]
[363148874,1748599846124,-430.0,0.00019726,2]
[363148876,1748599846133,-991.03,0.00019726,2]
[363148878,1748599846142,-1880.61,0.00019726,2]
[363148880,1748599846152,-430.0,0.00019726,2]
[363148882,1748599846161,-970.64,0.00019726,2]
[363148884,1748599846171,-430.0,0.00019726,2]
[363148886,1748599846180,-430.0,0.00019726,2]
[363148888,1748599846192,-430.0,0.00019726,2]
[363148890,1748599846201,-869.87,0.00019726,2]
[363148892,1748599846210,-430.0,0.00019726,2]
[363148894,1748599846219,-264.11485506,0.00019726,2]
[363148896,1748599846230,-6904.29,0.00019726,2]
[363148898,1748599846239,-2282.62,0.00019726,2]
[363148900,1748599846249,-419.95012082,0.00019726,2]
[363148901,1748599846260,-625.72,0.00019726,2]
[363148903,1748599846272,-430.0,0.00019726,2]
[363148905,1748599846281,-430.0,0.00019726,2]
[363148907,1748599846291,-430.0,0.00019726,2]
[363148909,1748599846300,-514.63,0.00019726,2]
[363148911,1748599846309,-802.09,0.00019726,2]
[363148913,1748599846319,-358.93832207,0.00019726,2]
[363148915,1748599846328,-430.0,0.00019726,2]
[363148917,1748599846338,-1801.05,0.00019726,2]
[363148919,1748599846347,-430.0,0.00019726,2]
[363148921,1748599846357,-494.08485364,0.00019726,2]
[363148923,1748599846366,-430.0,0.00019726,2]
[363148925,1748599846375,-430.0,0.00019726,2]
[363148927,1748599846388,-4916.12,0.00019726,2]
[363148929,1748599846397,-657.41,0.00019726,2]
[363148931,1748599846406,-430.0,0.00019726,2]
[363148933,1748599846415,-566.9,0.00019726,2]
[363148935,1748599846425,-335.44539189,0.00019726,2]
[363148937,1748599846434,-430.0,0.00019726,2]
[363148939,1748599846444,-6162.88,0.00019726,2]
[363148941,1748599846454,-430.0,0.00019726,2]
[363148943,1748599846463,-430.0,0.00019726,2]
[363148945,1748599846472,-430.0,0.00019726,2]
[363148946,1748599846482,-430.0,0.00019726,2]
[363148948,1748599846491,-625.42,0.00019726,2]
[363148950,1748599846501,-430.0,0.00019726,2]
[363148952,1748599846513,-430.0,0.00019726,2]
[363148954,1748599846524,-430.0,0.00019726,2]
[363148956,1748599846534,-430.0,0.00019726,2]
[363148958,1748599846543,-2321.09,0.00019726,2]
[363148960,1748599846554,-430.0,0.00019726,2]
[363148961,1748599846564,-430.0,0.00019726,2]
[363148962,1748599846573,-653.47,0.00019726,2]
[363148963,1748599846582,-646.21,0.00019726,2]
[363148964,1748599846591,-430.0,0.00019726,2]
[363148965,1748599846600,-1153.29,0.00019726,2]
[363148966,1748599846609,-430.0,0.00019726,2]
[363148967,1748599846618,-430.0,0.00019726,2]
[363148968,1748599846627,-430.0,0.00019726,2]
[363148969,1748599846635,-887.53,0.00019726,2]
[363148970,1748599846644,-5995.57,0.00019726,2]
[363148971,1748599846653,-1053.86,0.00019726,2]
[363148972,1748599846662,-430.0,0.00019726,2]
[363148973,1748599846671,-430.0,0.00019726,2]
[363148974,1748599846679,-430.0,0.00019726,2]
[363148975,1748599846688,-430.0,0.00019726,2]
[363148976,1748599846697,-430.0,0.00019726,2]
[363148977,1748599846706,-498.86056502,0.00019726,2]
[363148978,1748599846714,-544.43810814,0.00019726,2]
[363148979,1748599846723,-430.0,0.00019726,2]
[363148980,1748599846732,-430.0,0.00019726,2]
[363148981,1748599846741,-814.95,0.00019726,2]
[363148982,1748599846750,-446.52346101,0.00019855,2]
[363148983,1748599846759,-357.79225768,0.000199,2]
[363148984,1748599846770,-207.4,0.00019937,2]
[363148985,1748599846779,-229.49191492,0.00019999,2]
[363148986,1748599846789,-500.0,0.00019999,2]
[363148987,1748599846797,-500.0,0.00019999,2]
[363148988,1748599846806,-500.0,0.00019999,2]
[363148990,1748599846816,-500.0,0.00019999,2]
[363148992,1748599846825,-500.0,0.00019999,2]
[363148994,1748599846834,-548.64863625,0.00019999,2]
[363148996,1748599846843,-500.0,0.00019999,2]
[363148998,1748599846852,-500.0,0.00019999,2]
[363149000,1748599846862,-500.0,0.00019999,2]
[363149002,1748599846872,-500.0,0.00019999,2]
[363149004,1748599846881,-500.0,0.00019999,2]
[363149006,1748599846891,-500.0,0.00019999,2]
[363149008,1748599846900,-500.0,0.00019999,2]
[363149010,1748599846910,-500.0,0.00019999,2]
[363149012,1748599846919,-500.0,0.00019999,2]
[363149014,1748599846928,-263.78403048,0.00019999,2]
[363149016,1748599846938,-500.0,0.00019999,2]
[363149018,1748599846949,-500.0,0.00019999,2]
[363149020,1748599846958,-500.0,0.00019999,2]
[363149022,1748599846967,-500.0,0.00019999,2]
[363149024,1748599846977,-500.0,0.00019999,2]
[363149026,1748599846986,-500.0,0.00019999,2]
[363149028,1748599846996,-500.0,0.00019999,2]
[363149030,1748599847006,-5000.0,0.0002,3]
[363149032,1748599847016,-1045.78,0.0002,2]
[363149034,1748599847026,-430.0,0.0002,2]
[363149036,1748599847036,-430.0,0.0002,2]
[363149038,1748599847045,-625.44,0.0002,2]
[363149040,1748599847054,-430.0,0.0002,2]
[363149041,1748599847063,-439.0,0.0002,2]
[363149042,1748599847072,-430.0,0.0002,2]
[363149043,1748599847082,-430.0,0.0002,2]
[363149044,1748599847091,-430.0,0.0002,2]
[363149045,1748599847102,-430.0,0.0002,2]
[363149046,1748599847111,-430.0,0.0002,2]
[363149047,1748599847288,-430.0,0.0002,2]
[363149048,1748599847298,-430.0,0.0002,2]
[363149049,1748599847307,-2000.0,0.0002,2]
[363149050,1748599847317,-430.0,0.0002,2]
[363149051,1748599847327,-1350.74,0.0002,2]
[363149052,1748599847336,-430.0,0.0002,2]
[363149053,1748599847346,-430.0,0.0002,2]
[363149054,1748599847355,-430.0,0.0002,2]
[363149055,1748599847365,-494.83418502,0.0002,2]
[363149056,1748599847375,-511.6063874,0.0002,2]
[363149057,1748599847384,-430.0,0.0002,2]
[363149058,1748599847394,-430.0,0.0002,2]
[363149059,1748599847404,-1255.09,0.0002,2]
[363149060,1748599847413,-1398.56,0.0002,2]
[363149061,1748599847422,-430.0,0.0002,2]
[363149062,1748599847432,-430.0,0.0002,2]
[363149063,1748599847441,-430.0,0.0002,2]
[363149064,1748599847450,-442.67,0.0002,2]
[363149065,1748599847460,-430.0,0.0002,2]
[363149066,1748599847470,-480.93889199,0.0002,2]
[363149067,1748599847479,-430.0,0.0002,2]
[363149068,1748599847488,-311.25153084,0.0002,2]
[363149069,1748599847498,-453.44,0.0002,2]
[363149070,1748599847507,-4983.7,0.0002,2]
[363149071,1748599847517,-907.89,0.0002,2]
[363149072,1748599847526,-430.0,0.0002,2]
[363149074,1748599847536,-430.0,0.0002,2]
[363149076,1748599847546,-430.0,0.0002,2]
[363149078,1748599847555,-6118.79,0.0002,2]
[363149079,1748599847564,-430.0,0.0002,2]
[363149081,1748599847574,-2375.79,0.0002,2]
[363149083,1748599847584,-430.0,0.0002,2]
[363149085,1748599847593,-1557.44,0.0002,2]
[363149087,1748599847604,-1846.32,0.0002,2]
[363149089,1748599847613,-430.0,0.0002,2]
[363149091,1748599847622,-1005.88,0.0002,2]
[363149093,1748599847631,-781.05,0.0002,2]
[363149095,1748599847640,-430.0,0.0002,2]
[363149097,1748599847650,-7162.95,0.0002,2]
[363149099,1748599847659,-430.0,0.0002,2]
[363149101,1748599847669,-991.03,0.0002,2]
[363149103,1748599847679,-1880.61,0.0002,2]
[363149104,1748599847688,-430.0,0.0002,2]
[363149106,1748599847697,-970.64,0.0002,2]
[363149108,1748599847707,-430.0,0.0002,2]
[363149109,1748599847716,-430.0,0.0002,2]
[363149112,1748599847725,-430.0,0.0002,2]
[363149113,1748599847735,-869.87,0.0002,2]
[363149115,1748599847744,-430.0,0.0002,2]
[363149118,1748599847753,-6904.29,0.0002,2]
[363149119,1748599847763,-2282.62,0.0002,2]
[363149121,1748599847773,-625.72,0.0002,2]
[363149123,1748599847782,-430.0,0.0002,2]
[363149125,1748599847792,-430.0,0.0002,2]
[363149127,1748599847801,-430.0,0.0002,2]
[363149128,1748599847811,-514.63,0.0002,2]
[363149129,1748599847820,-802.09,0.0002,2]
[363149130,1748599847829,-430.0,0.0002,2]
[363149131,1748599847838,-1801.05,0.0002,2]
[363149132,1748599847848,-430.0,0.0002,2]
[363149133,1748599847857,-430.0,0.0002,2]
[363149134,1748599847866,-430.0,0.0002,2]
[363149135,1748599847875,-4916.12,0.0002,2]
[363149136,1748599847884,-657.41,0.0002,2]
[363149137,1748599847893,-430.0,0.0002,2]
[363149138,1748599847903,-566.9,0.0002,2]
[363149139,1748599847911,-430.0,0.0002,2]
[363149140,1748599847921,-6162.88,0.0002,2]
[363149141,1748599847931,-430.0,0.0002,2]
[363149142,1748599847940,-430.0,0.0002,2]
[363149143,1748599847950,-430.0,0.0002,2]
[363149144,1748599847960,-430.0,0.0002,2]
[363149145,1748599847969,-625.42,0.0002,2]
[363149146,1748599847979,-430.0,0.0002,2]
[363149147,1748599847988,-430.0,0.0002,4]
[363149148,1748599847997,-430.0,0.0002,2]
[363149149,1748599848007,-430.0,0.0002,2]
[363149150,1748599848017,-430.0,0.0002,2]
[363149151,1748599848026,-2321.09,0.0002,2]
[363149153,1748599848035,-430.0,0.0002,7]
[363149154,1748599848045,-340.91014995,0.0002,7]
[363149156,1748599848055,-430.0,0.0002,2]
[363149157,1748599848064,-430.0,0.0002,2]
[363149158,1748599848073,-653.47,0.0002,2]
[363149159,1748599848082,-646.21,0.0002,2]
[363149160,1748599848092,-430.0,0.0002,2]
[363149161,1748599848104,-1153.29,0.0002,2]
[363149162,1748599848116,-430.0,0.0002,2]
[363149163,1748599848130,-430.0,0.0002,2]
[363149164,1748599848143,-430.0,0.0002,2]
[363149165,1748599848155,-887.53,0.0002,2]
[363149166,1748599848166,-5995.57,0.0002,2]
[363149167,1748599848176,-1053.86,0.0002,2]
[363149168,1748599848190,-503.94676699,0.0002,2]
[363149169,1748599848199,-430.0,0.0002,2]
[363149170,1748599848209,-310.3468137,0.0002,2]
[363149171,1748599848218,-430.0,0.0002,2]
[363149172,1748599848229,-430.0,0.0002,2]
[363149173,1748599848239,-430.0,0.0002,2]
[363149174,1748599848249,-430.0,0.0002,2]
[363149175,1748599848258,-814.95,0.0002,2]
[363149176,1748599848269,-229.30959854,0.00020031,2]
[363149177,1748599848279,-842.5625,0.00020031,2]
[363149178,1748599848288,-160.0,0.00020031,2]
[363149179,1748599848306,-212.7380601,0.00020031,2]
[363149180,1748599848318,-423.39538199,0.00020031,2]
[363149181,1748599848328,-160.0,0.00020031,2]
[363149182,1748599848338,-160.0,0.00020031,2]
[363149183,1748599848348,-12663.11115519,0.00020031,2]
[363149184,1748599848359,-357.7922574,0.00020072,2]
[363149185,1748599848369,-224.132,0.00020184,2]
[363149186,1748599848379,-650.035369,0.00020187,2]
[363149187,1748599848389,-357.7922574,0.00020245,2]
[363149188,1748599848401,-430.0,0.00020273,2]
[363149189,1748599848410,-430.0,0.00020273,2]
[363149190,1748599848420,-625.44,0.00020273,2]
[363149191,1748599848430,-430.0,0.00020273,2]
[363149192,1748599848440,-439.0,0.00020273,2]
[363149193,1748599848450,-537.60181683,0.00020273,2]
[363149194,1748599848460,-430.0,0.00020273,2]
[363149195,1748599848470,-430.0,0.00020273,2]
[363149196,1748599848481,-430.0,0.00020273,2]
[363149197,1748599848491,-567.71318413,0.00020273,2]
[363149198,1748599848500,-430.0,0.00020273,2]
[363149199,1748599848511,-430.0,0.00020273,2]
[363149200,1748599848522,-430.0,0.00020273,2]
[363149201,1748599848532,-1350.74,0.00020273,2]
[363149202,1748599848542,-430.0,0.00020273,2]
[363149203,1748599848553,-430.0,0.00020273,2]
[363149204,1748599848563,-430.0,0.00020273,2]
[363149205,1748599848573,-430.0,0.00020273,2]
[363149206,1748599848584,-430.0,0.00020273,2]
[363149207,1748599848594,-1255.09,0.00020273,2]
[363149208,1748599848603,-1398.56,0.00020273,2]
[363149209,1748599848613,-430.0,0.00020273,2]
[363149210,1748599848622,-430.0,0.00020273,2]
[363149211,1748599848632,-430.0,0.00020273,2]
[363149212,1748599848642,-151.0,0.00020273,2]
[363149213,1748599848652,-442.67,0.00020273,2]
[363149214,1748599848661,-430.0,0.00020273,2]
[363149215,1748599848671,-151.0,0.00020273,2]
[363149216,1748599848681,-430.0,0.00020273,2]
[363149217,1748599848691,-453.44,0.00020273,2]
[363149218,1748599848701,-4983.7,0.00020273,2]
[363149219,1748599848711,-907.89,0.00020273,2]
[363149220,1748599848721,-430.0,0.00020273,2]
[363149221,1748599848731,-430.0,0.00020273,2]
[363149222,1748599848740,-430.0,0.00020273,2]
[363149223,1748599848750,-6118.79,0.00020273,2]
[363149224,1748599848760,-430.0,0.00020273,2]
[363149225,1748599848771,-2375.79,0.00020273,2]
[363149226,1748599848781,-430.0,0.00020273,2]
[363149227,1748599848791,-1557.44,0.00020273,2]
[363149228,1748599848801,-1846.32,0.00020273,2]
[363149229,1748599848811,-430.0,0.00020273,2]
[363149230,1748599848821,-1005.88,0.00020273,2]
[363149231,1748599848831,-781.05,0.00020273,2]
[363149232,1748599848842,-430.0,0.00020273,2]
[363149233,1748599848852,-7162.95,0.00020273,2]
[363149234,1748599848863,-430.0,0.00020273,2]
[363149235,1748599848873,-991.03,0.00020273,2]
[363149236,1748599848883,-1880.61,0.00020273,2]
[363149237,1748599848893,-430.0,0.00020273,2]
[363149238,1748599848903,-970.64,0.00020273,2]
[363149239,1748599848913,-430.0,0.00020273,2]
[363149240,1748599848922,-430.0,0.00020273,2]
[363149241,1748599848932,-430.0,0.00020273,2]
[363149242,1748599848943,-869.87,0.00020273,2]
[363149243,1748599848953,-430.0,0.00020273,2]
[363149244,1748599848963,-6904.29,0.00020273,2]
[363149245,1748599848973,-2282.62,0.00020273,2]
[363149248,1748599848996,-625.72,0.00020273,2]
[363149250,1748599849006,-430.0,0.00020273,2]
[363149252,1748599849018,-430.0,0.00020273,2]
[363149254,1748599849028,-430.0,0.00020273,2]
[363149256,1748599849037,-514.63,0.00020273,2]
[363149258,1748599849047,-802.09,0.00020273,2]
[363149259,1748599849057,-271.65853026,0.00020273,2]
[363149261,1748599849067,-1801.05,0.00020273,2]
[363149262,1748599849076,-344.74861666,0.00020273,2]
[363149263,1748599849086,-392.64470382,0.00020273,2]
[363149264,1748599849096,-430.0,0.00020273,2]
[363149265,1748599849106,-4916.12,0.00020273,2]
[363149266,1748599849116,-657.41,0.00020273,2]
[363149267,1748599849126,-430.0,0.00020273,2]
[363149268,1748599849136,-566.9,0.00020273,2]
[363149269,1748599849147,-430.0,0.00020273,2]
[363149270,1748599849157,-6162.88,0.00020273,2]
[363149271,1748599849168,-430.0,0.00020273,2]
[363149272,1748599849178,-430.0,0.00020273,2]
[363149273,1748599849191,-529.06548987,0.00020273,2]
[363149274,1748599849201,-430.0,0.00020273,2]
[363149275,1748599849211,-625.42,0.00020273,2]
[363149276,1748599849221,-430.0,0.00020273,2]
[363149277,1748599849232,-430.0,0.00020273,2]
[363149278,1748599849242,-430.0,0.00020273,2]
[363149279,1748599849251,-430.0,0.00020273,2]
[363149280,1748599849261,-2321.09,0.00020273,2]
[363149281,1748599849273,-430.0,0.00020273,2]
[363149282,1748599849283,-430.0,0.00020273,2]
[363149283,1748599849293,-653.47,0.00020273,2]
[363149284,1748599849302,-646.21,0.00020273,2]
[363149285,1748599849312,-430.0,0.00020273,2]
[363149286,1748599849321,-1153.29,0.00020273,2]
[363149287,1748599849331,-430.0,0.00020273,2]
[363149288,1748599849340,-430.0,0.00020273,2]
[363149289,1748599849349,-430.0,0.00020273,2]
[363149290,1748599849360,-887.53,0.00020273,2]
[363149291,1748599849370,-5995.57,0.00020273,2]
[363149292,1748599849380,-1053.86,0.00020273,2]
[363149293,1748599849390,-430.0,0.00020273,2]
[363149294,1748599849399,-430.0,0.00020273,2]
[363149295,1748599849409,-430.0,0.00020273,2]
[363149296,1748599849419,-430.0,0.00020273,2]
[363149297,1748599849429,-430.0,0.00020273,2]
[363149298,1748599849439,-814.95,0.00020273,2]
[363149299,1748599849448,-500.87972083,0.00020273,2]
[363149300,1748599849457,-500.0,0.00020273,2]
[363149301,1748599849467,-223.0,0.00020274,3]
[363149302,1748599849477,-172.01487286,0.00020379,2]
[363149303,1748599849486,-420.0,0.00020397,2]
[363149304,1748599849496,-357.7922574,0.00020417,3]
[363149305,1748599849506,-430.0,0.00020547,2]
[363149306,1748599849515,-458.80932258,0.00020547,2]
[363149307,1748599849525,-625.44,0.00020547,2]
[363149308,1748599849534,-430.0,0.00020547,2]
[363149309,1748599849544,-439.0,0.00020547,2]
[363149310,1748599849553,-430.0,0.00020547,2]
[363149311,1748599849563,-430.0,0.00020547,2]
[363149312,1748599849572,-430.0,0.00020547,2]
[363149313,1748599849581,-430.0,0.00020547,2]
[363149314,1748599849591,-358.91753022,0.00020547,2]
[363149315,1748599849601,-430.0,0.00020547,2]
[363149316,1748599849610,-1350.74,0.00020547,2]
[363149317,1748599849620,-337.52056389,0.00020547,2]
[363149318,1748599849629,-430.0,0.00020547,2]
[363149319,1748599849638,-430.0,0.00020547,2]
[363149320,1748599849648,-430.0,0.00020547,2]
[363149321,1748599849657,-430.0,0.00020547,2]
[363149322,1748599849667,-1255.09,0.00020547,2]
[363149323,1748599849731,-1398.56,0.00020547,2]
[363149324,1748599849741,-448.16823824,0.00020547,2]
[363149325,1748599849750,-430.0,0.00020547,2]
[363149326,1748599849759,-430.0,0.00020547,2]
[363149327,1748599849769,-442.67,0.00020547,2]
[363149328,1748599849778,-430.0,0.00020547,2]
[363149329,1748599849787,-430.0,0.00020547,2]
[363149330,1748599849797,-453.44,0.00020547,2]
[363149331,1748599849806,-4983.7,0.00020547,2]
[363149332,1748599849815,-907.89,0.00020547,2]
[363149333,1748599849825,-430.0,0.00020547,2]
[363149334,1748599849835,-430.0,0.00020547,2]
[363149335,1748599849844,-430.0,0.00020547,2]
[363149336,1748599849853,-6118.79,0.00020547,2]
[363149337,1748599849862,-430.0,0.00020547,2]
[363149338,1748599849871,-2375.79,0.00020547,2]
[363149339,1748599849880,-430.0,0.00020547,2]
[363149340,1748599849889,-1557.44,0.00020547,2]
[363149341,1748599849899,-1846.32,0.00020547,2]
[363149342,1748599849908,-430.0,0.00020547,2]
[363149343,1748599849917,-1005.88,0.00020547,2]
[363149344,1748599849927,-781.05,0.00020547,2]
[363149345,1748599849937,-430.0,0.00020547,2]
[363149346,1748599849946,-7162.95,0.00020547,2]
[363149347,1748599849955,-270.660121,0.00020547,2]
[363149348,1748599849965,-991.03,0.00020547,2]
[363149349,1748599849974,-1880.61,0.00020547,2]
[363149350,1748599849983,-430.0,0.00020547,2]
[363149351,1748599849992,-970.64,0.00020547,2]
[363149352,1748599850001,-430.0,0.00020547,2]
[363149353,1748599850011,-430.0,0.00020547,2]
[363149354,1748599850021,-430.0,0.00020547,2]
[363149355,1748599850030,-869.87,0.00020547,2]
[363149356,1748599850040,-430.0,0.00020547,2]
[363149357,1748599850050,-6904.29,0.00020547,2]
[363149358,1748599850060,-2282.62,0.00020547,2]
[363149359,1748599850069,-625.72,0.00020547,2]
[363149360,1748599850079,-430.0,0.00020547,2]
[363149361,1748599850089,-430.0,0.00020547,2]
[363149362,1748599850098,-448.50620666,0.00020547,2]
[363149363,1748599850108,-514.63,0.00020547,2]
[363149364,1748599850117,-802.09,0.00020547,2]
[363149365,1748599850127,-1801.05,0.00020547,2]
[363149366,1748599850137,-430.0,0.00020547,2]
[363149367,1748599850146,-4916.12,0.00020547,2]
[363149368,1748599850157,-657.41,0.00020547,2]
[363149369,1748599850167,-430.0,0.00020547,2]
[363149370,1748599850176,-566.9,0.00020547,2]
[363149371,1748599850189,-430.0,0.00020547,2]
[363149372,1748599850199,-430.0,0.00020547,2]
[363149373,1748599850208,-6162.88,0.00020547,2]
[363149374,1748599850218,-430.0,0.00020547,2]
[363149375,1748599850228,-430.0,0.00020547,2]
[363149376,1748599850237,-625.42,0.00020547,2]
[363149377,1748599850246,-430.0,0.00020547,2]
[363149378,1748599850256,-430.0,0.00020547,2]
[363149379,1748599850267,-430.0,0.00020547,2]